fUST/lending_fUST_20250906
["ID","MTS","AMOUNT","RATE_DAILY","PERIOD"]
[383732957,1757103060202,-1435.86,0.0001863,2]
[383732959,1757103060212,-687.92,0.0001863,2]
[383732961,1757103060222,-626.27,0.0001863,2]
[383732963,1757103060232,-665.9,0.0001863,2]
[383732965,1757103060243,-640.34,0.0001863,2]
[383732968,1757103060253,-790.66,0.0001863,2]
[383732969,1757103060262,-1666.92,0.0001863,2]
[383732971,1757103060272,-2180.69,0.0001863,2]
[383732973,1757103060283,-7203.67,0.0001863,2]
[383732975,1757103060293,-1225.97,0.0001863,2]
[383732977,1757103060302,-1428.8,0.0001863,2]
[383732979,1757103060312,-1108.64,0.0001863,2]
[383732981,1757103060322,-865.75,0.0001863,2]
[383732983,1757103060332,-4093.04,0.0001863,2]
[383732985,1757103060342,-534.04,0.0001863,2]
[383732987,1757103060352,-611.61,0.0001863,2]
[383732989,1757103060362,-480.0,0.0001863,2]
[383732991,1757103060372,-555.37,0.0001863,2]
[383732993,1757103060385,-2005.54,0.0001863,2]
[383732995,1757103060394,-695.85,0.0001863,2]
[383732997,1757103060403,-641.0,0.0001863,2]
[383732999,1757103060413,-674.5,0.0001863,2]
[383733001,1757103060423,-2484.53,0.0001863,2]
[383733003,1757103060432,-1101.11,0.0001863,2]
[383733005,1757103060442,-698.74,0.0001863,2]
[383733007,1757103060452,-1021.02,0.0001863,2]
[383733010,1757103060463,-370.51,0.0001863,2]
[383733011,1757103060472,-499.95,0.0001863,2]
[383733014,1757103060483,-489.39,0.0001863,2]
[383733016,1757103060493,-751.81,0.0001863,2]
[383733018,1757103060502,-1850.07,0.0001863,2]
[383733019,1757103060512,-480.0,0.0001863,2]
[383733021,1757103060521,-689.34,0.0001863,2]
[383733024,1757103060531,-934.43,0.0001863,2]
[383733026,1757103060542,-2351.15,0.0001863,2]
[383733028,1757103060552,-583.4664776,0.0001863,2]
[383733029,1757103060561,-295.2623739,0.0001863,2]
[383733031,1757103060571,-161.5326974,0.0001863,2]
[383733033,1757103060581,-161.5326974,0.0001863,2]
[383733036,1757103060591,-583.4664776,0.0001863,2]
[383733037,1757103060600,-295.2623739,0.0001863,2]
[383733040,1757103060610,-161.5326974,0.0001863,2]
[383733041,1757103060620,-583.4664776,0.0001863,2]
[383733043,1757103060630,-295.2623739,0.0001863,2]
[383733046,1757103060640,-583.4664776,0.0001863,2]
[383733047,1757103060650,-295.2623739,0.0001863,2]
[383733050,1757103060659,-161.5326974,0.0001863,2]
[383733051,1757103060668,-295.2623739,0.0001863,2]
[383733053,1757103060677,-161.5326974,0.0001863,2]
[383733055,1757103060687,-583.4664776,0.0001863,2]
[383733057,1757103060697,-295.2623739,0.0001863,2]
[383733059,1757103060706,-161.5326974,0.0001863,2]
[383733061,1757103060715,-583.4664776,0.0001863,2]
[383733063,1757103060725,-161.5326974,0.0001863,2]
[383733065,1757103060734,-583.4664776,0.0001863,2]
[383733067,1757103060743,-295.2623739,0.0001863,2]
[383733069,1757103060752,-161.5326974,0.0001863,2]
[383733071,1757103060761,-583.4664776,0.0001863,2]
[383733073,1757103060770,-583.4664776,0.0001863,2]
[383733075,1757103060779,-560.0,0.00018665,2]
[383733077,1757103060789,-3500.0,0.000188,2]
[383733079,1757103060798,-500.0,0.00018904,2]
[383733081,1757103060808,-706.16,0.00018904,2]
[383733083,1757103060817,-482.0,0.00018904,2]
[383733085,1757103060827,-614.49,0.00018904,2]
[383733087,1757103060836,-589.91,0.00018904,2]
[383733089,1757103060845,-480.0,0.00018904,2]
[383733091,1757103060854,-695.74,0.00018904,2]
[383733093,1757103060864,-513.79,0.00018904,2]
[383733095,1757103060878,-569.37,0.00018904,2]
[383733097,1757103060888,-818.23,0.00018904,2]
[383733099,1757103060898,-1090.3,0.00018904,2]
[383733101,1757103060908,-2838.89,0.00018904,2]
[383733103,1757103060917,-1570.51,0.00018904,2]
[383733105,1757103060928,-620.07,0.00018904,2]
[383733107,1757103060938,-641.06,0.00018904,2]
[383733109,1757103060950,-480.0,0.00018904,2]
[383733111,1757103060959,-1179.32,0.00018904,2]
[383733113,1757103060969,-633.15,0.00018904,2]
[383733115,1757103060979,-701.9,0.00018904,2]
[383733117,1757103060990,-777.67,0.00018904,2]
[383733119,1757103061000,-3459.85,0.00018904,2]
[383733121,1757103061010,-666.07,0.00018904,2]
[383733123,1757103061021,-1435.86,0.00018904,2]
[383733125,1757103061030,-687.92,0.00018904,2]
[383733127,1757103061039,-626.27,0.00018904,2]
[383733129,1757103061049,-665.9,0.00018904,2]
[383733131,1757103061059,-640.34,0.00018904,2]
[383733133,1757103061069,-790.66,0.00018904,2]
[383733135,1757103061078,-1666.92,0.00018904,2]
[383733137,1757103061087,-2180.69,0.00018904,2]
[383733139,1757103061097,-7203.67,0.00018904,2]
[383733140,1757103061106,-1225.97,0.00018904,2]
[383733142,1757103061116,-1428.8,0.00018904,2]
[383733145,1757103061126,-1108.64,0.00018904,2]
[383733155,1757103061218,-865.75,0.00018904,2]
[383733157,1757103061229,-4093.04,0.00018904,2]
[383733159,1757103061239,-534.04,0.00018904,2]
[383733161,1757103061248,-611.61,0.00018904,2]
[383733163,1757103061258,-480.0,0.00018904,2]
[383733165,1757103061267,-555.37,0.00018904,2]
[383733167,1757103061277,-2005.54,0.00018904,2]
[383733169,1757103061286,-695.85,0.00018904,2]
[383733171,1757103061295,-641.0,0.00018904,2]
[383733173,1757103061305,-674.5,0.00018904,2]
[383733175,1757103061315,-2484.53,0.00018904,2]
[383733177,1757103061324,-1101.11,0.00018904,2]
[383733179,1757103061334,-698.74,0.00018904,2]
[383733181,1757103061343,-1021.02,0.00018904,2]
[383733183,1757103061353,-499.95,0.00018904,2]
[383733185,1757103061363,-489.39,0.00018904,2]
[383733187,1757103061373,-751.81,0.00018904,2]
[383733189,1757103061384,-1850.07,0.00018904,2]
[383733191,1757103061393,-480.0,0.00018904,2]
[383733193,1757103061403,-689.34,0.00018904,2]
[383733195,1757103061413,-934.43,0.00018904,2]
[383733197,1757103061423,-2351.15,0.00018904,2]
[383733199,1757103061432,-4026.0,0.00019,2]
[383733201,1757103061441,-500.0,0.00019043,2]
[383733203,1757103061451,-48008.07571531,0.00019063,7]
[383733205,1757103061460,-75392.36995736,0.00019063,7]
[383733207,1757103061470,-203.18701864,0.000191,7]
[383733209,1757103061479,-417.15472785,0.000191,7]
[383733211,1757103061489,-530.48792916,0.000191,7]
[383733213,1757103061499,-500.0,0.00019178,2]
[383733215,1757103061508,-706.16,0.00019178,2]
[383733217,1757103061517,-150.0,0.00019178,2]
[383733219,1757103061526,-482.0,0.00019178,2]
[383733221,1757103061535,-614.49,0.00019178,2]
[383733223,1757103061545,-589.91,0.00019178,2]
[383733225,1757103061554,-199.50410036,0.00019178,2]
[383733227,1757103061563,-695.74,0.00019178,2]
[383733228,1757103061573,-513.79,0.00019178,2]
[383733230,1757103061582,-569.37,0.00019178,2]
[383733232,1757103061592,-818.23,0.00019178,2]
[383733234,1757103061601,-1090.3,0.00019178,2]
[383733236,1757103061611,-2838.89,0.00019178,2]
[383733238,1757103061621,-1570.51,0.00019178,2]
[383733240,1757103061631,-620.07,0.00019178,2]
[383733242,1757103061641,-641.06,0.00019178,2]
[383733244,1757103061651,-500.0,0.00019178,2]
[383733246,1757103061661,-500.0,0.00019178,2]
[383733248,1757103061672,-438.82,0.00019178,2]
[383733250,1757103061681,-1179.32,0.00019178,2]
[383733252,1757103061691,-633.15,0.00019178,2]
[383733254,1757103061701,-701.9,0.00019178,2]
[383733256,1757103061711,-777.67,0.00019178,2]
[383733258,1757103061720,-3459.85,0.00019178,2]
[383733260,1757103061730,-666.07,0.00019178,2]
[383733262,1757103061739,-1435.86,0.00019178,2]
[383733264,1757103061749,-687.92,0.00019178,2]
[383733266,1757103061759,-626.27,0.00019178,2]
[383733268,1757103061769,-665.9,0.00019178,2]
[383733270,1757103061778,-640.34,0.00019178,2]
[383733272,1757103061788,-790.66,0.00019178,2]
[383733274,1757103061797,-1666.92,0.00019178,2]
[383733276,1757103061807,-2180.69,0.00019178,2]
[383733278,1757103061819,-7203.67,0.00019178,2]
[383733280,1757103061828,-1225.97,0.00019178,2]
[383733282,1757103061839,-1428.8,0.00019178,2]
[383733284,1757103061848,-1108.64,0.00019178,2]
[383733286,1757103061859,-865.75,0.00019178,2]
[383733288,1757103061870,-3290.52311637,0.00019178,2]
[383733340,1757103062630,370000.0,0.00013496,2]
[383733358,1757103062799,-480.0,0.00013698,2]
[383733360,1757103062808,-480.0,0.00013698,2]
[383733362,1757103062818,-480.0,0.00013698,2]
[383733364,1757103062827,-439.94999464,0.00013698,2]
[383733366,1757103062839,-40.05000536,0.00013698,2]
[383733368,1757103062848,-480.0,0.00013698,2]
[383733370,1757103062857,-480.0,0.00013698,2]
[383733372,1757103062867,-3.42999464,0.00013698,2]
[383733375,1757103062884,-476.57000536,0.00013698,2]
[383733377,1757103062894,-539.83,0.00013972,2]
[383733379,1757103062903,-480.0,0.00013972,2]
[383733381,1757103062913,-480.0,0.00013972,2]
[383733383,1757103062925,-480.0,0.00013972,2]
[383733384,1757103062934,-382.97284695,0.00013972,2]
[383733387,1757103062948,-97.02715305,0.00013972,2]
[383733389,1757103062958,-228.73522271,0.0001399,2]
[383733391,1757103062969,-82.77240629,0.0001399,2]
[383733393,1757103062979,-311.507629,0.0001399,2]
[383733395,1757103062988,-480.0,0.00014246,2]
[383733397,1757103062997,-480.0,0.00014246,2]
[383733399,1757103063008,-480.0,0.00014246,2]
[383733401,1757103063018,-480.0,0.0001452,2]
[383733403,1757103063028,-480.0,0.0001452,2]
[383733405,1757103063038,-480.0,0.0001452,2]
[383733407,1757103063048,-480.0,0.0001452,2]
[383733409,1757103063058,-480.0,0.00014794,2]
[383733411,1757103063067,-480.0,0.00014794,2]
[383733413,1757103063077,-311.507629,0.00014794,2]
[383733415,1757103063086,-311.507629,0.00014794,2]
[383733417,1757103063095,-480.0,0.00014794,2]
[383733419,1757103063105,-359.02,0.00014794,2]
[383733421,1757103063116,-480.0,0.00015068,2]
[383733423,1757103063126,-480.0,0.00015068,2]
[383733425,1757103063137,-480.0,0.00015068,2]
[383733427,1757103063147,-480.0,0.00015342,2]
[383733429,1757103063158,-151.0,0.00015342,2]
[383733431,1757103063168,-218.186019,0.00015342,2]
[383733433,1757103063178,-329.96,0.00015342,2]
[383733435,1757103063187,-480.0,0.00015342,2]
[383733437,1757103063197,-311.507629,0.00015342,2]
[383733439,1757103063208,-311.507629,0.00015342,2]
[383733441,1757103063218,-480.0,0.00015342,2]
[383733443,1757103063228,-480.0,0.00015616,2]
[383733445,1757103063237,-480.0,0.00015616,2]
[383733447,1757103063247,-480.0,0.00015616,2]
[383733449,1757103063256,-480.0,0.0001589,2]
[383733451,1757103063266,-480.0,0.0001589,2]
[383733453,1757103063277,-480.0,0.0001589,2]
[383733455,1757103063287,-255.997681,0.00016164,2]
[383733457,1757103063297,-590.82,0.00016164,2]
[383733459,1757103063307,-480.0,0.00016164,2]
[383733461,1757103063317,-311.507629,0.00016164,2]
[383733463,1757103063326,-480.0,0.00016438,2]
[383733465,1757103063336,-598.75,0.00016712,2]
[383733467,1757103063345,-480.0,0.00016712,2]
[383733469,1757103063355,-598.75,0.00016986,2]
[383733471,1757103063365,-311.507629,0.00016986,2]
[383733473,1757103063375,-569.82468701,0.00016986,2]
[383733475,1757103063386,-598.75,0.0001726,2]
[383733477,1757103063396,-598.75,0.00017534,2]
[383733479,1757103063406,-598.75,0.00017808,2]
[383733481,1757103063415,-598.75,0.00018082,2]
[383733483,1757103063425,-1182.5,0.00018356,2]
[383733485,1757103063435,-598.75,0.00018356,2]
[383733487,1757103063445,-1182.5,0.0001863,2]
[383733489,1757103063456,-598.75,0.0001863,2]
[383733491,1757103063466,-1182.5,0.00018904,2]
[383733493,1757103063476,-598.75,0.00018904,2]
[383733495,1757103063485,-802.51688363,0.00019178,2]
[383733497,1757103063495,-534.04,0.00019178,2]
[383733499,1757103063505,-611.61,0.00019178,2]
[383733501,1757103063515,-288.97,0.00019178,2]
[383733503,1757103063524,-555.37,0.00019178,2]
[383733505,1757103063534,-2005.54,0.00019178,2]
[383733507,1757103063543,-695.85,0.00019178,2]
[383733509,1757103063553,-641.0,0.00019178,2]
[383733511,1757103063562,-674.5,0.00019178,2]
[383733513,1757103063571,-2484.53,0.00019178,2]
[383733515,1757103063581,-1101.11,0.00019178,2]
[383733517,1757103063590,-698.74,0.00019178,2]
[383733519,1757103063599,-1021.02,0.00019178,2]
[383733521,1757103063608,-499.95,0.00019178,2]
[383733523,1757103063618,-489.39,0.00019178,2]
[383733525,1757103063627,-751.81,0.00019178,2]
[383733527,1757103063638,-1850.07,0.00019178,2]
[383733529,1757103063647,-480.0,0.00019178,2]
[383733531,1757103063662,-689.34,0.00019178,2]
[383733533,1757103063673,-934.43,0.00019178,2]
[383733535,1757103063683,-2351.15,0.00019178,2]
[383733537,1757103063694,-1182.5,0.00019178,2]
[383733539,1757103063704,-598.75,0.00019178,2]
[383733541,1757103063714,-151.0,0.00019178,2]
[383733543,1757103063723,-500.0,0.00019178,7]
[383733545,1757103063734,-5000.0,0.00019178,2]
[383733547,1757103063743,-5000.0,0.00019178,2]
[383733549,1757103063753,-5000.0,0.00019178,2]
[383733551,1757103063762,-5000.0,0.00019178,2]
[383733553,1757103063771,-5000.0,0.00019178,2]
[383733555,1757103063780,-2000.58578065,0.00019178,2]
[383733557,1757103063790,-150.0,0.00019178,2]
[383733559,1757103063800,-660.0,0.00019213,2]
[383733561,1757103063809,-259.8023143,0.00019233,2]
[383733563,1757103063819,-300.0,0.00019315,2]
[383733565,1757103063828,-352.22510559,0.00019348,2]
[383733567,1757103063837,-5000.0,0.00019425,2]
[383733569,1757103063847,-500.0,0.00019452,2]
[383733571,1757103063857,-500.0,0.00019452,2]
[383733573,1757103063866,-500.0,0.00019452,2]
[383733574,1757103063880,-706.16,0.00019452,2]
[383733576,1757103063889,-482.0,0.00019452,2]
[383733578,1757103063899,-614.49,0.00019452,2]
[383733580,1757103063908,-589.91,0.00019452,2]
[383733582,1757103063918,-695.74,0.00019452,2]
[383733584,1757103063928,-513.79,0.00019452,2]
[383733586,1757103063937,-569.37,0.00019452,2]
[383733588,1757103063948,-818.23,0.00019452,2]
[383733599,1757103064045,-1090.3,0.00019452,2]
[383733601,1757103064056,-1570.51,0.00019452,2]
[383733603,1757103064066,-620.07,0.00019452,2]
[383733605,1757103064076,-641.06,0.00019452,2]
[383733607,1757103064086,-1179.32,0.00019452,2]
[383733610,1757103064096,-633.15,0.00019452,2]
[383733612,1757103064108,-701.9,0.00019452,2]
[383733613,1757103064117,-777.67,0.00019452,2]
[383733616,1757103064127,-3459.85,0.00019452,2]
[383733618,1757103064137,-666.07,0.00019452,2]
[383733619,1757103064147,-687.92,0.00019452,2]
[383733622,1757103064157,-626.27,0.00019452,2]
[383733623,1757103064167,-665.9,0.00019452,2]
[383733625,1757103064177,-640.34,0.00019452,2]
[383733627,1757103064187,-790.66,0.00019452,2]
[383733629,1757103064197,-1666.92,0.00019452,2]
[383733632,1757103064207,-2180.69,0.00019452,2]
[383733633,1757103064216,-7203.67,0.00019452,2]
[383733635,1757103064226,-1225.97,0.00019452,2]
[383733638,1757103064236,-1428.8,0.00019452,2]
[383733639,1757103064245,-1108.64,0.00019452,2]
[383733642,1757103064255,-865.75,0.00019452,2]
[383733644,1757103064266,-4093.04,0.00019452,2]
[383733646,1757103064275,-534.04,0.00019452,2]
[383733648,1757103064286,-611.61,0.00019452,2]
[383733650,1757103064295,-555.37,0.00019452,2]
[383733652,1757103064305,-2005.54,0.00019452,2]
[383733654,1757103064315,-695.85,0.00019452,2]
[383733656,1757103064325,-641.0,0.00019452,2]
[383733658,1757103064335,-674.5,0.00019452,2]
[383733660,1757103064344,-2484.53,0.00019452,2]
[383733662,1757103064354,-1101.11,0.00019452,2]
[383733664,1757103064365,-698.74,0.00019452,2]
[383733666,1757103064375,-1021.02,0.00019452,2]
[383733668,1757103064385,-489.39,0.00019452,2]
[383733670,1757103064395,-499.95,0.00019452,2]
[383733672,1757103064404,-751.81,0.00019452,2]
[383733674,1757103064414,-1850.07,0.00019452,2]
[383733676,1757103064424,-163.1169481,0.00019452,2]
[383733678,1757103064433,-689.34,0.00019452,2]
[383733680,1757103064443,-934.43,0.00019452,2]
[383733682,1757103064453,-2351.15,0.00019452,2]
[383733684,1757103064463,-1182.5,0.00019452,2]
[383733686,1757103064473,-598.75,0.00019452,2]
[383733688,1757103064482,-150.09693527,0.00019452,2]
[383733690,1757103064492,-151161.44684692,0.000195,2]
[383733693,1757103064506,-34769.17709384,0.000195,2]
[383733705,1757103064611,-255.00000001,0.00013698,2]
[383733732,1757103064861,-49.95958512,0.00013698,2]
[383733757,1757103065102,-120.50201508,0.00013698,2]
[383733759,1757103065112,-480.0,0.00013698,2]
[383733761,1757103065122,-480.0,0.00013698,2]
[383733763,1757103065132,-480.0,0.00013698,2]
[383733765,1757103065141,-480.0,0.00013698,2]
[383733767,1757103065151,-480.0,0.00013698,2]
[383733769,1757103065161,-480.0,0.00013972,2]
[383733771,1757103065170,-480.0,0.00013972,2]
[383733773,1757103065179,-480.0,0.00013972,2]
[383733775,1757103065189,-480.0,0.00014246,2]
[383733777,1757103065198,-480.0,0.0001452,2]
[383733779,1757103065207,-156.6,0.00014794,2]
[383733781,1757103065217,-480.0,0.00016164,2]
[383733783,1757103065226,-480.0,0.00016438,2]
[383733785,1757103065235,-480.0,0.00016712,2]
[383733787,1757103065245,-480.0,0.00016986,2]
[383733789,1757103065255,-480.0,0.0001726,2]
[383733791,1757103065265,-480.0,0.00017534,2]
[383733793,1757103065276,-480.0,0.00017808,2]
[383733795,1757103065285,-480.0,0.00018082,2]
[383733797,1757103065295,-480.0,0.00018356,2]
[383733799,1757103065304,-268.62,0.0001863,2]
[383733801,1757103065314,-5822.81478397,0.000195,2]
[383733826,1757103065736,-480.0,0.00013698,2]
[383733828,1757103065745,-480.0,0.00013698,2]
[383733830,1757103065755,-480.0,0.00013698,2]
[383733832,1757103065764,-480.0,0.00013698,2]
[383733834,1757103065773,-264.44,0.00013698,2]
[383733836,1757103065783,-480.0,0.00013698,2]
[383733838,1757103065792,-480.0,0.00013698,2]
[383733840,1757103065802,-480.0,0.00013972,2]
[383733842,1757103065811,-480.0,0.00013972,2]
[383733844,1757103065820,-480.0,0.00013972,2]
[383733846,1757103065831,-480.0,0.00013972,2]
[383733848,1757103065840,-311.507629,0.0001399,2]
[383733850,1757103065849,-311.507629,0.0001399,2]
[383733852,1757103065858,-256.15,0.00014246,2]
[383733854,1757103065868,-480.0,0.00014246,2]
[383733856,1757103065882,-480.0,0.00014246,2]
[383733858,1757103065892,-342.65,0.0001452,2]
[383733860,1757103065901,-346.75,0.0001452,2]
[383733862,1757103065910,-311.507629,0.00014794,2]
[383733864,1757103065921,-311.507629,0.00015342,2]
[383733866,1757103065931,-409.0,0.00015795,2]
[383733868,1757103065940,-311.507629,0.00016164,2]
[383733870,1757103065951,-311.507629,0.00016164,2]
[383733872,1757103065961,-311.507629,0.00016986,2]
[383733874,1757103065971,-311.507629,0.00016986,2]
[383733876,1757103065982,-409.0,0.00018795,2]
[383733878,1757103065991,-238914.13595234,0.000195,2]
[383733880,1757103066001,-161.5326974,0.00019505,2]
[383733882,1757103066010,-295.2623739,0.00019505,2]
[383733884,1757103066020,-583.4664776,0.00019505,2]
[383733886,1757103066029,-500.0,0.00019726,2]
[383733888,1757103066039,-387.55209535,0.00019726,2]
[383733890,1757103066048,-500.0,0.00019726,2]
[383733892,1757103066057,-706.16,0.00019726,2]
[383733894,1757103066067,-482.0,0.00019726,2]
[383733896,1757103066076,-614.49,0.00019726,2]
[383733898,1757103066086,-589.91,0.00019726,2]
[383733900,1757103066096,-695.74,0.00019726,2]
[383733902,1757103066106,-513.79,0.00019726,2]
[383733904,1757103066117,-569.37,0.00019726,2]
[383733907,1757103066126,-818.23,0.00019726,2]
[383733909,1757103066136,-1090.3,0.00019726,2]
[383733911,1757103066145,-641.06,0.00019726,2]
[383733912,1757103066154,-1179.32,0.00019726,2]
[383733915,1757103066164,-633.15,0.00019726,2]
[383733917,1757103066174,-701.9,0.00019726,2]
[383733918,1757103066184,-777.67,0.00019726,2]
[383733921,1757103066194,-666.07,0.00019726,2]
[383733923,1757103066203,-687.92,0.00019726,2]
[383733925,1757103066214,-626.27,0.00019726,2]
[383733927,1757103066223,-640.34,0.00019726,2]
[383733929,1757103066233,-790.66,0.00019726,2]
[383733931,1757103066243,-1666.92,0.00019726,2]
[383733933,1757103066252,-2180.69,0.00019726,2]
[383733935,1757103066261,-7203.67,0.00019726,2]
[383733937,1757103066271,-1225.97,0.00019726,2]
[383733939,1757103066280,-1428.8,0.00019726,2]
[383733941,1757103066289,-1108.64,0.00019726,2]
[383733942,1757103066299,-865.75,0.00019726,2]
[383733944,1757103066308,-4093.04,0.00019726,2]
[383733947,1757103066319,-534.04,0.00019726,2]
[383733949,1757103066329,-611.61,0.00019726,2]
[383733951,1757103066338,-555.37,0.00019726,2]
[383733953,1757103066347,-2005.54,0.00019726,2]
[383733955,1757103066357,-695.85,0.00019726,2]
[383733957,1757103066367,-641.0,0.00019726,2]
[383733959,1757103066378,-674.5,0.00019726,2]
[383733961,1757103066389,-2484.53,0.00019726,2]
[383733963,1757103066399,-1101.11,0.00019726,2]
[383733965,1757103066409,-698.74,0.00019726,2]
[383733967,1757103066419,-1021.02,0.00019726,2]
[383733969,1757103066428,-489.39,0.00019726,2]
[383733971,1757103066437,-499.95,0.00019726,2]
[383733973,1757103066446,-308.65825875,0.00019726,2]
[383734017,1757103066860,10516.28956359,0.00013361,2]
[383734047,1757103067260,300.0,0.0001336,2]
[383735887,1757103087572,402.8812874,0.0001302,2]
[383737007,1757103100414,2690.94811743,0.00013461,2]
[383739041,1757103323558,195.9,0.00012329,2]
[383739042,1757103334007,195.9,0.00012329,2]
[383739044,1757103344491,783.61,0.00012329,2]
[383739047,1757103355049,227.98,0.00012329,2]
[383739058,1757103813136,157.0,7.9e-07,2]
[383739059,1757103814178,157.0,7.9e-07,2]
[383739060,1757103815226,157.0,7.9e-07,2]
[383739061,1757103816941,157.0,7.9e-07,2]
[383739062,1757103818044,157.0,7.9e-07,2]
[383739063,1757103819107,157.0,7.9e-07,2]
[383739065,1757103872855,162.89081125,0.00013498,2]
[383739066,1757104006389,423.50785669,0.0001319,2]
[383739075,1757104111803,53242.78416761,0.00028968,120]
[383739076,1757104114313,65215.9437408,0.00028968,90]
[383739100,1757104232493,-162.89081125,0.00013518,2]
[383739102,1757104232503,-162.89081125,0.00013538,2]
[383739104,1757104232512,-162.89081125,0.00013558,2]
[383739106,1757104232521,-162.89081125,0.00013578,2]
[383739108,1757104232530,-1595.88492158,0.00013595,2]
[383739109,1757104232539,-162.89081125,0.00013598,2]
[383739111,1757104232548,-338.70335131,0.00013598,2]
[383739113,1757104232557,-338.70335127,0.00013666,2]
[383739115,1757104232566,-1200.0,0.00013692,2]
[383739117,1757104232575,-300.0,0.00013692,2]
[383739119,1757104232584,-280.0,0.00013692,2]
[383739121,1757104232593,-300.0,0.00013692,2]
[383739123,1757104232603,-1200.0,0.00013692,2]
[383739126,1757104232613,-300.0,0.00013692,2]
[383739129,1757104232623,-95507.94049222,0.00013693,2]
[383739131,1757104232631,-1559.83523126,0.00013696,2]
[383739135,1757104232643,-314.5842607,0.00013696,2]
[383739140,1757104232653,-974.48453401,0.00013696,2]
[383739287,1757104238499,-3414.11223142,0.00013696,2]
[383739288,1757104238511,-998.91019413,0.00013697,2]
[383739289,1757104238522,-559.28202338,0.00013697,2]
[383739290,1757104238532,-500.0,0.00013697,2]
[383739291,1757104238542,-275.4,0.00013697,2]
[383739292,1757104238552,-500.0,0.00013697,2]
[383739293,1757104238561,-500.0,0.00013697,2]
[383739294,1757104238571,-500.0,0.00013697,2]
[383739295,1757104238580,-500.0,0.00013697,2]
[383739297,1757104238589,-500.0,0.00013697,2]
[383739298,1757104238599,-500.0,0.00013697,2]
[383739299,1757104238609,-500.0,0.00013697,2]
[383739300,1757104238621,-500.0,0.00013697,2]
[383739301,1757104238630,-518.83773299,0.00013697,2]
[383739302,1757104238640,-273.20235207,0.00013697,2]
[383739303,1757104238650,-408.51095465,0.00013697,2]
[383739304,1757104238659,-253.82852997,0.00013697,2]
[383739305,1757104238669,-500.0,0.00013697,2]
[383739306,1757104238679,-500.0,0.00013697,2]
[383739307,1757104238687,-500.0,0.00013697,2]
[383739308,1757104238696,-500.0,0.00013697,2]
[383739309,1757104238706,-500.0,0.00013697,2]
[383739310,1757104238715,-500.0,0.00013697,2]
[383739311,1757104238725,-500.0,0.00013697,2]
[383739312,1757104238739,-488.28974751,0.00013697,2]
[383739313,1757104238749,-500.0,0.00013697,2]
[383739314,1757104238759,-500.0,0.00013697,2]
[383739315,1757104238768,-500.0,0.00013697,2]
[383739316,1757104238777,-500.0,0.00013697,2]
[383739317,1757104238787,-500.0,0.00013697,2]
[383739318,1757104238796,-500.0,0.00013697,2]
[383739319,1757104238805,-500.0,0.00013697,2]
[383739320,1757104238815,-500.0,0.00013697,2]
[383739321,1757104238824,-500.0,0.00013697,2]
[383739322,1757104238833,-500.0,0.00013697,2]
[383739323,1757104238842,-467.39186554,0.00013697,2]
[383739324,1757104238851,-500.0,0.00013697,2]
[383739325,1757104238862,-500.0,0.00013697,2]